fUST/lending_fUST_20250303
["ID","MTS","AMOUNT","RATE_DAILY","PERIOD"]
[355184454,1740959463604,-500.0,0.00046532,2]
[355184455,1740959463615,-7890.1,0.00046575,120]
[355184456,1740959463625,-2000.0,0.00046794,120]
[355184457,1740959463636,-313.2496479,0.00046849,30]
[355184458,1740959463646,-216277.31489851,0.000469,120]
[355184459,1740959463656,-25000.0,0.00047,47]
[355184460,1740959463666,-1119.00000099,0.00047,120]
[355184461,1740959463677,-159.0,0.00047121,90]
[355184462,1740959463688,-7890.1,0.0004726,120]
[355184463,1740959463699,-2000.0,0.00047342,120]
[355184464,1740959463709,-571.0,0.000474,25]
[355184465,1740959463720,-151.0,0.00047507,120]
[355184466,1740959463730,-154.9888434,0.00047671,30]
[355184467,1740959463740,-42379.69,0.000477,30]
[355184468,1740959463750,-852.87,0.000477,30]
[355184469,1740959463760,-2000.0,0.0004789,120]
[355184470,1740959463770,-7890.1,0.00047945,120]
[355184471,1740959463779,-470.15341602,0.0004795,120]
[355184472,1740959463789,-470.15341602,0.0004795,120]
[355184473,1740959463799,-470.15341602,0.0004795,120]
[355184474,1740959463808,-470.15341602,0.0004795,120]
[355184475,1740959463818,-470.15341602,0.0004795,120]
[355184476,1740959463828,-470.15341602,0.0004795,120]
[355184477,1740959463838,-470.15341602,0.0004795,120]
[355184478,1740959463848,-470.15341602,0.0004795,120]
[355184479,1740959463857,-470.15341602,0.0004795,120]
[355184480,1740959463867,-470.15341602,0.0004795,120]
[355184481,1740959463877,-470.15341602,0.0004795,120]
[355184482,1740959463888,-470.15341602,0.0004795,120]
[355184483,1740959463899,-470.15341602,0.0004795,120]
[355184484,1740959463909,-470.15341602,0.0004795,120]
[355184485,1740959463920,-470.15341602,0.0004795,120]
[355184486,1740959463929,-470.15341602,0.0004795,120]
[355184487,1740959463939,-470.15341602,0.0004795,120]
[355184488,1740959463950,-470.15341602,0.0004795,120]
[355184489,1740959463960,-470.15341602,0.0004795,120]
[355184490,1740959463970,-470.15,0.0004795,120]
[355184491,1740959463980,-1097.02463738,0.0004795,120]
[355184492,1740959463990,-1097.02463738,0.0004795,120]
[355184493,1740959464000,-1097.02463738,0.0004795,120]
[355184494,1740959464010,-1097.02463738,0.0004795,120]
[355184495,1740959464021,-1097.02463738,0.0004795,120]
[355184496,1740959464031,-1097.02463738,0.0004795,120]
[355184497,1740959464040,-1097.02463738,0.0004795,120]
[355184498,1740959464051,-1097.02463738,0.0004795,120]
[355184499,1740959464061,-1097.02463738,0.0004795,120]
[355184500,1740959464070,-1097.02463738,0.0004795,120]
[355184501,1740959464080,-1097.02463738,0.0004795,120]
[355184502,1740959464091,-1097.02463738,0.0004795,120]
[355184503,1740959464100,-1097.02463738,0.0004795,120]
[355184504,1740959464110,-1097.02463738,0.0004795,120]
[355184505,1740959464121,-1097.02463738,0.0004795,120]
[355184506,1740959464131,-1097.02463738,0.0004795,120]
[355184507,1740959464142,-1097.02463738,0.0004795,120]
[355184508,1740959464152,-1097.02463738,0.0004795,120]
[355184509,1740959464163,-1097.02463738,0.0004795,120]
[355184510,1740959464173,-1097.02,0.0004795,120]
[355184511,1740959464183,-1040.8367197,0.0004795,120]
[355184512,1740959464193,-1040.8367197,0.0004795,120]
[355184513,1740959464203,-1040.8367197,0.0004795,120]
[355184514,1740959464216,-1040.8367197,0.0004795,120]
[355184515,1740959464226,-1040.8367197,0.0004795,120]
[355184516,1740959464235,-1040.8367197,0.0004795,120]
[355184517,1740959464247,-1040.8367197,0.0004795,120]
[355184518,1740959464256,-1040.8367197,0.0004795,120]
[355184519,1740959464266,-1040.8367197,0.0004795,120]
[355184520,1740959464276,-1040.8367197,0.0004795,120]
[355184521,1740959464286,-1040.8367197,0.0004795,120]
[355184522,1740959464369,-1040.8367197,0.0004795,120]
[355184523,1740959464382,-1040.8367197,0.0004795,120]
[355184524,1740959464392,-1040.8367197,0.0004795,120]
[355184525,1740959464402,-1040.8367197,0.0004795,120]
[355184526,1740959464411,-1040.8367197,0.0004795,120]
[355184527,1740959464421,-1040.8367197,0.0004795,120]
[355184528,1740959464431,-1040.8367197,0.0004795,120]
[355184529,1740959464440,-1040.8367197,0.0004795,120]
[355184530,1740959464450,-1040.83,0.0004795,120]
[355184531,1740959464459,-2428.61901263,0.0004795,120]
[355184532,1740959464468,-2428.61901263,0.0004795,120]
[355184533,1740959464478,-2428.61901263,0.0004795,120]
[355184534,1740959464488,-2428.61901263,0.0004795,120]
[355184535,1740959464499,-2428.61901263,0.0004795,120]
[355184536,1740959464508,-2428.61901263,0.0004795,120]
[355184537,1740959464519,-2428.61901263,0.0004795,120]
[355184538,1740959464528,-2428.61901263,0.0004795,120]
[355184539,1740959464538,-2428.61901263,0.0004795,120]
[355184540,1740959464548,-2428.61901263,0.0004795,120]
[355184541,1740959464558,-2428.61901263,0.0004795,120]
[355184542,1740959464568,-2428.61901263,0.0004795,120]
[355184543,1740959464578,-2428.61901263,0.0004795,120]
[355184544,1740959464588,-2428.61901263,0.0004795,120]
[355184545,1740959464599,-2428.61901263,0.0004795,120]
[355184546,1740959464609,-2428.61901263,0.0004795,120]
[355184547,1740959464630,-2428.61901263,0.0004795,120]
[355184548,1740959464641,-2428.61901263,0.0004795,120]
[355184549,1740959464653,-2428.61901263,0.0004795,120]
[355184550,1740959464663,-2428.61,0.0004795,120]
[355184551,1740959464674,-409.67139217,0.0004795,120]
[355184552,1740959464684,-409.67139217,0.0004795,120]
[355184553,1740959464696,-409.67139217,0.0004795,120]
[355184554,1740959464707,-409.67139217,0.0004795,120]
[355184555,1740959464718,-409.67139217,0.0004795,120]
[355184556,1740959464729,-409.67139217,0.0004795,120]
[355184557,1740959464740,-409.67139217,0.0004795,120]
[355184558,1740959464750,-409.67139217,0.0004795,120]
[355184559,1740959464761,-409.67139217,0.0004795,120]
[355184560,1740959464771,-409.67139217,0.0004795,120]
[355184561,1740959464781,-409.67139217,0.0004795,120]
[355184562,1740959464791,-409.67139217,0.0004795,120]
[355184563,1740959464802,-409.67139217,0.0004795,120]
[355184564,1740959464812,-409.67139217,0.0004795,120]
[355184565,1740959464823,-409.67139217,0.0004795,120]
[355184566,1740959464833,-409.67139217,0.0004795,120]
[355184567,1740959464843,-409.67139217,0.0004795,120]
[355184568,1740959464852,-409.67139217,0.0004795,120]
[355184569,1740959464863,-409.67139217,0.0004795,120]
[355184570,1740959464872,-409.67,0.0004795,120]
[355184571,1740959464883,-955.89991506,0.0004795,120]
[355184572,1740959464894,-955.89991506,0.0004795,120]
[355184573,1740959464904,-955.89991506,0.0004795,120]
[355184574,1740959464915,-955.89991506,0.0004795,120]
[355184575,1740959464926,-955.89991506,0.0004795,120]
[355184576,1740959464936,-955.89991506,0.0004795,120]
[355184577,1740959464946,-955.89991506,0.0004795,120]
[355184578,1740959464957,-955.89991506,0.0004795,120]
[355184579,1740959464967,-955.89991506,0.0004795,120]
[355184580,1740959464995,-955.89991506,0.0004795,120]
[355184581,1740959465022,-955.89991506,0.0004795,120]
[355184582,1740959465044,-955.89991506,0.0004795,120]
[355184583,1740959465069,-955.89991506,0.0004795,120]
[355184584,1740959465095,-955.89991506,0.0004795,120]
[355184585,1740959465118,-955.89991506,0.0004795,120]
[355184586,1740959465142,-955.89991506,0.0004795,120]
[355184587,1740959465163,-955.89991506,0.0004795,120]
[355184588,1740959465180,-955.89991506,0.0004795,120]
[355184589,1740959465202,-955.89991506,0.0004795,120]
[355184590,1740959465233,-955.89,0.0004795,120]
[355184591,1740959465259,-600.0,0.00047952,2]
[355184592,1740959465273,-25000.0,0.00048,48]
[355184593,1740959465297,-145204.9511663,0.00048,2]
[355184594,1740959465314,-24515.54,0.00048,120]
[355184595,1740959465334,-4405.0,0.00048,120]
[355184596,1740959465354,-150.0,0.00048024,2]
[355184597,1740959465377,-539.0,0.00048024,2]
[355184598,1740959465399,-1955.0,0.00048024,2]
[355184599,1740959465420,-2279.0,0.00048024,2]
[355184600,1740959465439,-160.0,0.00048095,6]
[355184601,1740959465456,-5000.0,0.00048247,30]
[355184602,1740959465474,-978279.03719379,0.000483,120]
[355184603,1740959465492,-1283.2,0.000484,30]
[355184604,1740959465510,-1277.89,0.000484,30]
[355184605,1740959465526,-2693.4,0.000484,30]
[355184606,1740959465543,-300.0,0.000484,120]
[355184607,1740959465561,-2000.0,0.00048438,120]
[355184608,1740959465579,-600.0,0.00048452,2]
[355184609,1740959465596,-292.11328,0.00048532,2]
[355184610,1740959465613,-7890.1,0.0004863,120]
[355184611,1740959465630,-21028.79376507,0.000487,120]
[355184612,1740959465647,-5000.0,0.00048735,30]
[355184613,1740959465664,-21398.0,0.00048787,120]
[355184614,1740959465681,-23356.81348781,0.000488,120]
[355184615,1740959465698,-19584.4124536,0.000488,120]
[355184616,1740959465716,-1216600.0,0.0004884,120]
[355184617,1740959465733,-571.0,0.000489,26]
[355184618,1740959465750,-637.63069986,0.000489,28]
[355184619,1740959465768,-150.0,0.00048941,14]
[355184620,1740959465784,-150.0,0.00048941,14]
[355184621,1740959465801,-300.0,0.00048941,60]
[355184622,1740959465817,-300.0,0.00048941,60]
[355184623,1740959465834,-400.0,0.00048941,60]
[355184624,1740959465851,-9000.0,0.00048941,2]
[355184625,1740959465867,-1000.0,0.00048941,120]
[355184626,1740959465883,-1000.0,0.00048941,10]
[355184627,1740959465900,-5000.0,0.00048941,120]
[355184628,1740959465917,-29179.68948894,0.00048941,2]
[355184629,1740959465933,-3055.13583854,0.00048941,2]
[355184630,1740959465950,-90248.20647307,0.00048941,2]
[355184631,1740959465966,-16680.97909468,0.00048941,2]
[355184632,1740959465984,-300.0,0.00048941,2]
[355184633,1740959466001,-3815.80783893,0.00048941,2]
[355184634,1740959466019,-801.57559769,0.00048941,2]
[355184635,1740959466034,-252.23203818,0.00048941,2]
[355184636,1740959466185,-293.8974072,0.00048941,2]
[355184637,1740959466196,-814.02364528,0.00048941,2]
[355184638,1740959466207,-1643.1894737,0.00048941,2]
[355184639,1740959466219,-323.72526363,0.00048941,2]
[355184640,1740959466229,-288.91690239,0.00048941,2]
[355184641,1740959466239,-1197.25734764,0.00048941,2]
[355184642,1740959466249,-189.18671984,0.00048941,12]
[355184643,1740959466258,-51185.14291502,0.00048941,2]
[355184644,1740959466268,-355.69403076,0.00048941,2]
[355184645,1740959466278,-4163.2618616,0.00048941,2]
[355184646,1740959466289,-4137.33359606,0.00048941,7]
[355184647,1740959466298,-154.87510274,0.00048941,2]
[355184648,1740959466308,-10200.82221214,0.00048941,2]
[355184649,1740959466318,-914.08871206,0.00048941,2]
[355184650,1740959466327,-3010.3650344,0.00048941,2]
[355184651,1740959466337,-6230.4005351,0.00048941,2]
[355184652,1740959466346,-155.98367768,0.00048941,2]
[355184653,1740959466357,-1066.93220744,0.00048941,10]
[355184654,1740959466366,-521.19648181,0.00048941,2]
[355184655,1740959466375,-1697.39783146,0.00048941,2]
[355184656,1740959466387,-441.62198045,0.00048941,2]
[355184657,1740959466396,-15023.27159641,0.00048941,10]
[355184658,1740959466405,-1850.47477945,0.00048941,2]
[355184659,1740959466415,-13644.02693844,0.00048941,2]
[355184660,1740959466424,-502.61239178,0.00048941,2]
[355184661,1740959466434,-3853.58991687,0.00048941,2]
[355184662,1740959466443,-463.46421869,0.00048941,2]
[355184663,1740959466454,-177.40048925,0.00048941,2]
[355184664,1740959466463,-166.88819463,0.00048941,14]
[355184665,1740959466472,-866849.53090931,0.00048941,20]
[355184666,1740959466704,-500.0,0.00022465,2]
[355184667,1740959466714,-500.0,0.00025753,2]
[355184668,1740959466725,-600.0,0.00048951,2]
[355184669,1740959466734,-743438.94115901,0.00048975,20]
[355184670,1740959467158,-500.0,0.00021917,2]
[355184671,1740959467169,-500.0,0.00021917,2]
[355184672,1740959467179,-500.0,0.00021917,2]
[355184673,1740959467189,-500.0,0.00022191,2]
[355184674,1740959467204,-500.0,0.00022191,2]
[355184675,1740959467214,-500.0,0.00022191,2]
[355184676,1740959467225,-500.0,0.00022465,2]
[355184677,1740959467235,-500.0,0.00022465,2]
[355184678,1740959467246,-500.0,0.00022465,2]
[355184679,1740959467256,-500.0,0.00022739,2]
[355184680,1740959467266,-611.46,0.00022739,2]
[355184681,1740959467276,-500.0,0.00022739,2]
[355184682,1740959467287,-559.9845935,0.00023013,2]
[355184683,1740959467297,-500.0,0.00023013,2]
[355184684,1740959467306,-500.0,0.00023287,2]
[355184685,1740959467315,-500.0,0.00023561,2]
[355184686,1740959467325,-500.0,0.00023835,2]
[355184687,1740959467334,-397.0,0.00024024,2]
[355184688,1740959467345,-347.56,0.00024109,2]
[355184689,1740959467356,-500.0,0.00026027,2]
[355184690,1740959467366,-500.0,0.00026301,2]
[355184691,1740959467377,-500.0,0.00026575,2]
[355184692,1740959467390,-500.0,0.00026849,2]
[355184693,1740959467399,-397.0,0.00027024,2]
[355184694,1740959467409,-500.0,0.00027123,2]
[355184695,1740959467419,-625.99,0.00027397,2]
[355184696,1740959467428,-397.0,0.00030024,2]
[355184697,1740959467438,-397.0,0.00033024,2]
[355184698,1740959467448,-397.0,0.00036024,2]
[355184699,1740959467459,-397.0,0.00039024,2]
[355184700,1740959467468,-55638.53359673,0.00048975,20]
[355184701,1740959467478,-4005.8786501,0.00048975,3]
[355184702,1740959467488,-38691.91788975,0.00048975,2]
[355184703,1740959467498,-187.48464936,0.00048975,2]
[355184704,1740959467509,-100000.0,0.00048975,8]
[355184705,1740959467519,-1384.10637565,0.00048975,2]
[355184706,1740959467528,-300.4345564,0.00048975,2]
[355184707,1740959467538,-581.4625089,0.00048975,2]
[355184708,1740959467548,-5834.53867549,0.00048975,2]
[355184709,1740959467558,-19368.07831588,0.00048975,15]
[355184710,1740959467567,-502.67673423,0.00048975,2]
[355184711,1740959467679,-253210.4975594,0.00048975,2]
[355184712,1740959467769,-250.0,0.00021917,2]
[355184713,1740959467779,-250.0,0.00022191,2]
[355184714,1740959467789,-325.25,0.00022465,2]
[355184715,1740959467798,-397.0,0.00042024,2]
[355184716,1740959467808,-397.0,0.00045024,2]
[355184717,1740959467817,-397.0,0.00048024,2]
[355184718,1740959467827,-41108.93809854,0.00048975,2]
[355184719,1740959467894,-105879.06649107,0.00048975,2]
[355184720,1740959467903,-303.09851522,0.00048975,10]
[355184721,1740959467913,-150.0,0.00048975,120]
[355184722,1740959467924,-31794.51780122,0.00048975,2]
[355184723,1740959467947,-500.0,0.00021917,2]
[355184724,1740959467957,-500.0,0.00021917,2]
[355184725,1740959467967,-27198.22103339,0.00048975,2]
[355184727,1740959699894,-5000.0,0.00021284,12]
[355184728,1740959699917,-5000.0,0.00021499,12]
[355184729,1740959699939,-162.5054881,0.00021817,7]
[355184730,1740959699963,-4163.74377633,0.00021817,30]
[355184731,1740959699991,-151.0,0.00021973,7]
[355184732,1740959700013,-357.2,0.00022,7]
[355184733,1740959703065,5000.0,0.00022,7]
[355184734,1740959711175,5000.0,0.00022,7]
[355184735,1740959720676,236.85507866,0.00022,5]
[355184736,1740959728975,5000.0,0.00022,5]
[355184737,1740959730852,-245.16427093,0.00021716,2]
[355184738,1740959730875,-256.57633246,0.00021716,2]
[355184739,1740959730896,-222000.0,0.00021717,2]
[355184740,1740959730921,-3347.8492823,0.000219,3]
[355184741,1740959730942,-500.0,0.00021917,2]
[355184742,1740959730967,-500.0,0.00021917,2]
[355184743,1740959730989,-507.6,0.00021917,2]
[355184744,1740959731011,-500.0,0.00021917,2]
[355184745,1740959731034,-500.0,0.00021917,2]
[355184746,1740959731057,-500.0,0.00021917,2]
[355184747,1740959731079,-500.0,0.00021917,2]
[355184748,1740959731101,-500.0,0.00021917,2]
[355184749,1740959731126,-500.0,0.00021917,2]
[355184750,1740959731149,-500.0,0.00021917,2]
[355184751,1740959731173,-522.64,0.00021917,2]
[355184752,1740959731195,-535.95,0.00021917,2]
[355184753,1740959731218,-500.0,0.00021917,2]
[355184754,1740959731240,-500.0,0.00021917,2]
[355184755,1740959731262,-500.0,0.00021917,2]
[355184756,1740959731284,-500.0,0.00021917,2]
[355184757,1740959731310,-548.51,0.00021917,2]
[355184758,1740959731348,-500.0,0.00021917,2]
[355184759,1740959731372,-500.0,0.00021917,2]
[355184760,1740959731394,-500.0,0.00021917,2]
[355184761,1740959731416,-500.0,0.00021917,2]
[355184762,1740959731438,-500.0,0.00021917,2]
[355184763,1740959731461,-500.0,0.00021917,2]
[355184764,1740959731483,-500.0,0.00021917,2]
[355184765,1740959731505,-500.0,0.00021917,2]
[355184766,1740959731527,-500.0,0.00021917,2]
[355184767,1740959731550,-500.0,0.00021917,2]
[355184768,1740959731572,-1107.32,0.00021917,2]
[355184769,1740959731594,-349.74897668,0.00021917,2]
[355184770,1740959731617,-500.0,0.00021917,2]
[355184771,1740959731640,-500.0,0.00021917,2]
[355184772,1740959731664,-602.51,0.00021917,2]
[355184773,1740959731686,-272.2903099,0.00021917,2]
[355184774,1740959731710,-500.0,0.00021917,2]
[355184775,1740959731732,-409.11106348,0.00021917,2]
[355184776,1740959731755,-500.0,0.00021917,2]
[355184777,1740959731777,-500.0,0.00021917,2]
[355184778,1740959731799,-616.8,0.00021917,2]
[355184779,1740959731821,-500.0,0.00021917,2]
[355184780,1740959731844,-500.0,0.00021917,2]
[355184781,1740959731866,-500.0,0.00021917,2]
[355184782,1740959731890,-500.0,0.00021917,2]
[355184783,1740959731912,-500.0,0.00021917,2]
[355184784,1740959731935,-500.0,0.00021917,2]
[355184785,1740959731957,-500.0,0.00021917,2]
[355184786,1740959731980,-500.0,0.00021917,2]
[355184787,1740959732003,-500.0,0.00021917,2]
[355184788,1740959732025,-542.1,0.00021917,2]
[355184789,1740959732053,-500.0,0.00021917,2]
[355184790,1740959732076,-604.37,0.00021917,2]
[355184791,1740959732101,-500.0,0.00021917,2]
[355184792,1740959732125,-500.0,0.00021917,2]
[355184793,1740959732149,-500.0,0.00021917,2]
[355184794,1740959732172,-500.0,0.00021917,2]
[355184795,1740959732195,-500.0,0.00021917,2]
[355184796,1740959732217,-500.0,0.00021917,2]
[355184797,1740959732239,-500.0,0.00021917,2]
[355184798,1740959732261,-500.0,0.00021917,2]
[355184799,1740959732287,-500.0,0.00021917,2]
[355184800,1740959732310,-500.72,0.00021917,2]
[355184801,1740959732335,-500.0,0.00021917,2]
[355184802,1740959732358,-500.0,0.00021917,2]
[355184803,1740959732385,-500.0,0.00021917,2]
[355184804,1740959732407,-500.44,0.00021917,2]
[355184805,1740959732428,-500.0,0.00021917,2]
[355184806,1740959732449,-500.0,0.00021917,2]
[355184807,1740959732471,-500.0,0.00021917,2]
[355184808,1740959732493,-500.0,0.00021917,2]
[355184809,1740959732519,-500.0,0.00021917,2]
[355184810,1740959732542,-500.0,0.00021917,2]
[355184811,1740959732565,-500.0,0.00021917,2]
[355184812,1740959732591,-500.0,0.00021917,2]
[355184813,1740959732612,-500.0,0.00021917,2]
[355184814,1740959732638,-203.33900028,0.00021917,2]
[355184815,1740959732660,-500.0,0.00021917,2]
[355184816,1740959732682,-500.0,0.00021917,2]
[355184817,1740959732705,-500.0,0.00021917,2]
[355184818,1740959732727,-500.0,0.00021917,2]
[355184819,1740959732750,-500.0,0.00021917,2]
[355184820,1740959732771,-500.0,0.00021917,2]
[355184821,1740959732795,-483.33,0.00021917,2]
[355184822,1740959732816,-500.0,0.00021917,2]
[355184823,1740959732838,-500.4,0.00021917,2]
[355184824,1740959732860,-500.0,0.00021917,2]
[355184825,1740959732883,-500.0,0.00021917,2]
[355184826,1740959732906,-575.39,0.00021917,2]
[355184827,1740959732928,-500.0,0.00021917,2]
[355184828,1740959734250,1061.18,0.00021917,2]
[355184829,1740959740344,500.0,0.00021917,2]
[355184830,1740959741957,321.48,0.00022,7]
[355184831,1740959742514,500.0,0.00021917,2]
[355184832,1740959744940,3743.64981237,0.00022,2]
[355184833,1740959755533,500.0,0.00021917,2]
[355184834,1740959758010,500.0,0.00021917,2]
[355184835,1740959758959,500.0,0.00021917,2]
[355184836,1740959761458,500.0,0.00021917,2]
[355184837,1740959764392,501.91,0.00021917,2]
[355184838,1740959768160,596.44,0.00021917,2]
[355184839,1740959769590,500.0,0.00021917,2]
[355184840,1740959775340,500.0,0.00021917,2]
[355184841,1740959775595,500.0,0.00021917,2]
[355184843,1740959784382,609.75,0.00021917,2]
[355184844,1740959798234,500.0,0.00021917,2]
[355184845,1740959803189,188362.12660851,0.00021617,2]
[355184852,1740960120649,-249.3758785,0.00021616,14]
[355184853,1740960132103,-300.0,0.00021616,2]
[355184854,1740960132125,-33637.87339149,0.00021617,2]
[355184855,1740960132149,-500.0,0.00021917,2]
[355184856,1740960132170,-500.0,0.00021917,2]
[355184857,1740960132192,-500.0,0.00021917,2]
[355184858,1740960132215,-500.0,0.00021917,2]
[355184859,1740960132237,-500.0,0.00021917,2]
[355184860,1740960132261,-332.61508385,0.00021917,2]
[355184861,1740960132283,-513.01,0.00021917,2]
[355184862,1740960132311,-500.0,0.00021917,2]
[355184863,1740960132333,-500.0,0.00021917,2]
[355184864,1740960132356,-500.0,0.00021917,2]
[355184865,1740960132379,-588.39,0.00021917,2]
[355184866,1740960132402,-342.37,0.00021917,2]
[355184867,1740960132427,-500.0,0.00021917,2]
[355184868,1740960132450,-500.0,0.00021917,2]
[355184869,1740960132475,-500.0,0.00021917,2]
[355184870,1740960132499,-500.0,0.00021917,2]
[355184874,1740960164152,500.0,0.00021917,2]
[355184875,1740960169615,500.0,0.00021917,2]
[355184895,1740960633968,-500.0,0.00021917,2]
[355184896,1740960633978,-300.0,0.0002219,2]
[355184897,1740960633989,-500.0,0.00022191,2]
[355184898,1740960633999,-368.19,0.00022191,2]
[355184899,1740960634010,-152.4,0.00022191,2]
[355184900,1740960634020,-232.38,0.00022191,2]
[355184901,1740960634030,-187.59,0.00022191,2]
[355184902,1740960634040,-428.98,0.00022191,2]
[355184903,1740960634050,-180.43,0.00022191,2]
[355184904,1740960634061,-223.59,0.00022465,2]
[355184905,1740960634071,-10235.97664527,0.00023241,2]
[355184906,1740960634081,-160.0,0.00023241,2]
[355184907,1740960634091,-200.0,0.0002382,2]
[355184908,1740960634101,-220.0,0.0002382,2]
[355184909,1740960634111,-242.0,0.0002382,2]
[355184910,1740960634122,-266.2,0.0002382,2]
[355184911,1740960634133,-292.82,0.0002382,2]
[355184912,1740960634144,-322.102,0.0002382,2]
[355184913,1740960634154,-354.3122,0.0002382,2]
[355184914,1740960634167,-389.74342,0.0002382,2]
[355184915,1740960634182,-428.717762,0.0002382,2]
[355184916,1740960634194,-400.0,0.0002382,2]
[355184917,1740960634205,-500.0,0.00023834,2]
[355184918,1740960634216,-255.2653524,0.00023834,2]
[355184919,1740960634227,-500.0,0.00023834,2]
[355184920,1740960634238,-500.0,0.00023834,2]
[355184921,1740960634248,-500.0,0.00023834,2]
[355184922,1740960634257,-500.0,0.00023834,2]
[355184923,1740960634267,-500.0,0.00023834,2]
[355184924,1740960634276,-500.0,0.00023834,2]
[355184925,1740960634286,-500.0,0.00023834,2]
[355184926,1740960634296,-500.0,0.00023834,2]
[355184927,1740960634306,-588.7,0.00023834,2]
[355184928,1740960634317,-500.0,0.00023834,2]
[355184929,1740960634327,-500.0,0.00023834,2]
[355184930,1740960634338,-500.0,0.00023834,2]
[355184931,1740960634348,-500.0,0.00023834,2]
[355184932,1740960634358,-500.0,0.00023834,2]
[355184933,1740960634370,-500.0,0.00023834,2]
[355184934,1740960634382,-501.87,0.00023834,2]
[355184935,1740960634394,-500.0,0.00023834,2]
[355184936,1740960634406,-500.0,0.00023834,2]
[355184937,1740960634418,-500.0,0.00023834,2]
[355184938,1740960634433,-500.0,0.00023834,2]
[355184939,1740960634445,-500.0,0.00023834,2]
[355184940,1740960634456,-500.0,0.00023834,2]
[355184941,1740960634466,-594.32,0.00023834,2]
[355184942,1740960634477,-500.0,0.00023834,2]
[355184943,1740960634488,-500.0,0.00023834,2]
[355184944,1740960634499,-500.0,0.00023834,2]
[355184945,1740960634510,-500.0,0.00023834,2]
[355184946,1740960634520,-500.0,0.00023834,2]
[355184947,1740960634531,-500.0,0.00023834,2]
[355184948,1740960634542,-500.0,0.00023834,2]
[355184949,1740960634553,-500.0,0.00023834,2]
[355184950,1740960634563,-500.0,0.00023834,2]
[355184951,1740960634574,-546.04443159,0.00023834,2]
[355184952,1740960634587,-500.0,0.00023834,2]
[355184953,1740960634597,-500.0,0.00023834,2]
[355184954,1740960634608,-500.0,0.00023834,2]
[355184955,1740960634618,-500.0,0.00023834,2]
[355184956,1740960634631,-500.0,0.00023834,2]
[355184957,1740960634642,-645.39,0.00023834,2]
[355184958,1740960634653,-500.0,0.00023834,2]
[355184959,1740960634663,-500.0,0.00023834,2]
[355184960,1740960634676,-500.0,0.00023834,2]
[355184961,1740960634687,-500.0,0.00023834,2]
[355184962,1740960634698,-500.0,0.00023834,2]
[355184963,1740960634708,-500.0,0.00023834,2]
[355184964,1740960634719,-500.0,0.00023834,2]
[355184965,1740960634729,-500.0,0.00023834,2]
[355184966,1740960634739,-564.86,0.00023834,2]
[355184967,1740960634749,-500.0,0.00023834,2]
[355184968,1740960634759,-500.0,0.00023834,2]
[355184969,1740960634769,-500.0,0.00023834,2]
[355184970,1740960634779,-500.0,0.00023834,2]
[355184971,1740960634789,-500.0,0.00023834,2]
[355184972,1740960634799,-500.0,0.00023834,2]
[355184973,1740960634808,-619.74,0.00023834,2]
[355184974,1740960634818,-500.0,0.00023834,2]
[355184975,1740960634829,-500.0,0.00023834,2]
[355184976,1740960634838,-500.0,0.00023834,2]
[355184977,1740960634848,-500.0,0.00023834,2]
[355184978,1740960634859,-500.0,0.00023834,2]
[355184979,1740960634868,-500.0,0.00023834,2]
[355184980,1740960634878,-500.0,0.00023834,2]
[355184981,1740960634888,-500.0,0.00023834,2]
[355184982,1740960634899,-500.0,0.00023834,2]
[355184983,1740960634909,-500.0,0.00023834,2]